[Event "2026 European Womens Championship"]
[Site "Batumi, GE"]
[Date "2026.05.28"]
[Round "4"]
[White "Socko, Monika"]
[Black "Zherebtsova, Alexandra"]
[Result "1/2-1/2"]
[Board "10"]
[TimeControl "5400+30"]
[WhiteFideId "1106619"]
[BlackFideId "24129518"]
[WhiteElo "2355"]
[BlackElo "2242"]
[WhiteTitle "GM"]
[BlackTitle "FM"]
[WhiteClock "0:17:33"]
[BlackClock "0:01:34"]
[Variant "Standard"]

1. d4 {[%clk 1:30:59]}  Nf6 {[%clk 1:29:35]} 2. Bg5 {[%clk 1:31:26]}  d5 {[%clk 1:28:36]} 3. Nd2 {[%clk 1:31:44]}  c5 {[%clk 1:26:09]}
4. Bxf6 {[%clk 1:32:08]}  exf6 {[%clk 1:21:25]} 5. dxc5 {[%clk 1:32:28]}  Bxc5 {[%clk 1:19:53]} 6. Nb3 {[%clk 1:32:49]}  Bb6 {[%clk 1:18:32]}
7. e3 {[%clk 1:32:44]}  Nc6 {[%clk 1:17:17]} 8. Ne2 {[%clk 1:29:58]}  O-O {[%clk 1:13:09]} 9. c3 {[%clk 1:30:06]}  Re8 {[%clk 1:08:30]}
10. Ned4 {[%clk 1:26:12]}  Ne5 {[%clk 0:50:58]} 11. Be2 {[%clk 1:25:38]}  a6 {[%clk 0:47:34]} 12. Qc2 {[%clk 1:16:44]}  Bd7 {[%clk 0:42:59]}
13. Rd1 {[%clk 1:14:10]}  Ba4 {[%clk 0:33:45]} 14. h4 {[%clk 1:12:00]}  Qe7 {[%clk 0:26:12]} 15. Nf5 {[%clk 1:06:10]}  Qe6 {[%clk 0:26:21]}
16. h5 {[%clk 1:05:01]}  g6 {[%clk 0:24:20]} 17. Nfd4 {[%clk 1:01:06]}  Qe7 {[%clk 0:24:13]} 18. Rh3 {[%clk 0:45:25]}  Rad8 {[%clk 0:20:33]}
19. Kf1 {[%clk 0:43:19]}  Bd7 {[%clk 0:19:09]} 20. Rh4 {[%clk 0:42:24]}  f5 {[%clk 0:13:11]} 21. g3 {[%clk 0:40:18]}  g5 {[%clk 0:12:23]}
22. Rh1 {[%clk 0:37:43]}  Qf6 {[%clk 0:12:39]} 23. Qc1 {[%clk 0:32:04]}  h6 {[%clk 0:11:44]} 24. Nc2 {[%clk 0:28:23]}  Ng4 {[%clk 0:06:34]}
25. Nbd4 {[%clk 0:23:44]}  Kh8 {[%clk 0:06:10]} 26. Nb4 {[%clk 0:21:42]}  Bc8 {[%clk 0:06:24]} 27. Bf3 {[%clk 0:20:51]}  Qe5 {[%clk 0:05:34]}
28. Nd3 {[%clk 0:17:11]}  Qd6 {[%clk 0:05:36]} 29. Bxg4 {[%clk 0:12:30]}  fxg4 {[%clk 0:06:01]} 30. Kg2 {[%clk 0:12:57]}  Bxd4 {[%clk 0:04:52]}
31. exd4 {[%clk 0:07:33]}  Bf5 {[%clk 0:05:03]} 32. Rhe1 {[%clk 0:05:25]}  Be4+ {[%clk 0:02:55]} 33. Kg1 {[%clk 0:05:42]}  b6 {[%clk 0:02:42]}
34. Re3 {[%clk 0:05:36]}  f6 {[%clk 0:02:55]} 35. Rde1 {[%clk 0:05:46]}  Qd7 {[%clk 0:02:35]} 36. c4 {[%clk 0:03:49]}  Rc8 {[%clk 0:01:36]}
37. Qd1 {[%clk 0:02:12]}  Rxc4 {[%clk 0:01:48]} 38. b3 {[%clk 0:01:40]}  Rcc8 {[%clk 0:02:03]} 39. Qe2 {[%clk 0:01:46]}  Qf7 {[%clk 0:01:13]}
40. Qxg4 {[%clk 0:00:48]}  Bxd3 {[%clk 0:01:25]} 41. Rxe8+ {[%clk 0:26:18]}  Rxe8 {[%clk 0:31:03]} 42. Rxe8+ {[%clk 0:26:46]}  Qxe8 {[%clk 0:31:05]}
43. Qf3 {[%clk 0:27:14]}  Be4 {[%clk 0:23:46]} 44. Qxf6+ {[%clk 0:27:38]}  Kh7 {[%clk 0:23:52]} 45. g4 {[%clk 0:24:48]}  b5 {[%clk 0:17:36]}
46. b4 {[%clk 0:21:10]}  Qh8 {[%clk 0:15:42]} 47. Qxh8+ {[%clk 0:20:06]}  Kxh8 {[%clk 0:16:02]} 48. Kh2 {[%clk 0:20:33]}  Kg7 {[%clk 0:11:10]}
49. Kg3 {[%clk 0:20:57]}  Kf6 {[%clk 0:11:29]} 50. f3 {[%clk 0:16:53]}  Bh7 {[%clk 0:11:49]} 51. Kh3 {[%clk 0:17:02]}  Bg8 {[%clk 0:12:14]}
52. Kg2 {[%clk 0:16:56]}  Bf7 {[%clk 0:12:40]} 53. Kh3 {[%clk 0:17:15]}  Be8 {[%clk 0:06:50]} 54. Kg2 {[%clk 0:17:33]}  Bf7 {[%clk 0:00:00]} 1/2-1/2

[Event "2026 European Womens Championship"]
[Site "Batumi, GE"]
[Date "2026.05.28"]
[Round "4"]
[White "Rodshtein, Tereza"]
[Black "Rakhmangulova, Anastasiya"]
[Result "1/2-1/2"]
[Board "11"]
[TimeControl "5400+30"]
[WhiteFideId "325449"]
[BlackFideId "14117479"]
[WhiteElo "2218"]
[BlackElo "2328"]
[WhiteTitle "WGM"]
[BlackTitle "WGM"]
[WhiteClock "0:14:11"]
[BlackClock "0:28:40"]
[Variant "Standard"]

1. e4 {[%clk 1:30:55]}  c5 {[%clk 1:29:39]} 2. Nf3 {[%clk 1:31:15]}  e6 {[%clk 1:29:52]} 3. d4 {[%clk 1:31:16]}  cxd4 {[%clk 1:30:15]}
4. Nxd4 {[%clk 1:31:42]}  Nc6 {[%clk 1:30:41]} 5. Nc3 {[%clk 1:31:34]}  Qc7 {[%clk 1:31:04]} 6. Be3 {[%clk 1:31:28]}  a6 {[%clk 1:31:25]}
7. Be2 {[%clk 1:30:41]}  Nf6 {[%clk 1:31:05]} 8. O-O {[%clk 1:30:10]}  Be7 {[%clk 1:31:26]} 9. f4 {[%clk 1:30:01]}  d6 {[%clk 1:31:51]}
10. Qe1 {[%clk 1:29:11]}  Bd7 {[%clk 1:32:07]} 11. Rd1 {[%clk 1:20:43]}  b5 {[%clk 1:24:47]} 12. a3 {[%clk 1:20:08]}  Nxd4 {[%clk 1:22:50]}
13. Bxd4 {[%clk 1:19:46]}  Bc6 {[%clk 1:21:13]} 14. Bf3 {[%clk 0:56:40]}  O-O {[%clk 1:17:54]} 15. Qg3 {[%clk 0:55:38]}  Rad8 {[%clk 1:09:07]}
16. Kh1 {[%clk 0:53:19]}  a5 {[%clk 1:07:00]} 17. Rfe1 {[%clk 0:48:52]}  Ne8 {[%clk 0:53:25]} 18. e5 {[%clk 0:36:48]}  dxe5 {[%clk 0:49:52]}
19. Bxe5 {[%clk 0:36:57]}  Qb7 {[%clk 0:47:49]} 20. Rxd8 {[%clk 0:36:47]}  Bxd8 {[%clk 0:48:15]} 21. Ne4 {[%clk 0:27:22]}  Be7 {[%clk 0:48:19]}
22. Bd4 {[%clk 0:25:31]}  Qc7 {[%clk 0:42:04]} 23. c3 {[%clk 0:24:30]}  a4 {[%clk 0:40:57]} 24. Bd1 {[%clk 0:23:12]}  Bd5 {[%clk 0:38:22]}
25. Bc2 {[%clk 0:22:33]}  h6 {[%clk 0:37:05]} 26. Nf2 {[%clk 0:18:36]}  f5 {[%clk 0:35:32]} 27. Bd1 {[%clk 0:15:54]}  Bd6 {[%clk 0:33:25]}
28. Nd3 {[%clk 0:15:22]}  Nf6 {[%clk 0:33:46]} 29. Bf3 {[%clk 0:14:19]}  Ne4 {[%clk 0:30:19]} 30. Bxe4 {[%clk 0:13:48]}  Bxe4 {[%clk 0:29:21]}
31. Ne5 {[%clk 0:13:50]}  Bxe5 {[%clk 0:28:43]} 32. Bxe5 {[%clk 0:14:11]}  Qd7 {[%clk 0:28:40]} 1/2-1/2

[Event "2026 European Womens Championship"]
[Site "Batumi, GE"]
[Date "2026.05.28"]
[Round "4"]
[White "Javakhishvili, Lela"]
[Black "Schneider, Jana"]
[Result "1/2-1/2"]
[Board "12"]
[TimeControl "5400+30"]
[WhiteFideId "13601458"]
[BlackFideId "12924997"]
[WhiteElo "2442"]
[BlackElo "2283"]
[WhiteTitle "IM"]
[BlackTitle "WGM"]
[WhiteClock "0:10:13"]
[BlackClock "0:16:04"]
[Variant "Standard"]

1. d4 {[%clk 1:30:56]}  d5 {[%clk 1:30:39]} 2. c4 {[%clk 1:31:14]}  e6 {[%clk 1:30:59]} 3. Nc3 {[%clk 1:31:36]}  Nf6 {[%clk 1:31:12]}
4. Bg5 {[%clk 1:31:37]}  Be7 {[%clk 1:31:14]} 5. e3 {[%clk 1:31:58]}  h6 {[%clk 1:30:47]} 6. Bh4 {[%clk 1:32:19]}  O-O {[%clk 1:30:46]}
7. Qc2 {[%clk 1:32:18]}  b6 {[%clk 1:28:33]} 8. Nf3 {[%clk 1:32:27]}  c5 {[%clk 1:26:55]} 9. dxc5 {[%clk 1:28:13]}  bxc5 {[%clk 1:25:33]}
10. Rd1 {[%clk 1:28:25]}  Nbd7 {[%clk 1:20:19]} 11. cxd5 {[%clk 1:19:26]}  exd5 {[%clk 1:19:51]} 12. Bb5 {[%clk 1:19:43]}  Bb7 {[%clk 1:16:34]}
13. Qf5 {[%clk 1:15:37]}  Nb6 {[%clk 1:12:03]} 14. Ne5 {[%clk 1:07:00]}  Qc8 {[%clk 1:04:34]} 15. Qxc8 {[%clk 0:45:53]}  Raxc8 {[%clk 1:04:08]}
16. O-O {[%clk 0:45:49]}  g5 {[%clk 0:53:53]} 17. Bg3 {[%clk 0:46:02]}  Rfd8 {[%clk 0:53:47]} 18. Be2 {[%clk 0:40:58]}  d4 {[%clk 0:49:36]}
19. exd4 {[%clk 0:38:01]}  cxd4 {[%clk 0:49:45]} 20. Nb5 {[%clk 0:38:23]}  Rc2 {[%clk 0:48:23]} 21. Bd3 {[%clk 0:35:27]}  Rxb2 {[%clk 0:47:42]}
22. Nxa7 {[%clk 0:35:50]}  Rxa2 {[%clk 0:40:22]} 23. Nac6 {[%clk 0:35:18]}  Re8 {[%clk 0:38:42]} 24. Rb1 {[%clk 0:25:10]}  Bxc6 {[%clk 0:31:38]}
25. Nxc6 {[%clk 0:25:32]}  Nbd5 {[%clk 0:31:36]} 26. Nxd4 {[%clk 0:18:51]}  Rd2 {[%clk 0:27:59]} 27. Rbd1 {[%clk 0:18:39]}  Rxd1 {[%clk 0:28:14]}
28. Rxd1 {[%clk 0:19:06]}  Nh5 {[%clk 0:24:22]} 29. Re1 {[%clk 0:15:44]}  Rc8 {[%clk 0:18:52]} 30. Nf5 {[%clk 0:13:30]}  Bf8 {[%clk 0:16:04]}
31. Rd1 {[%clk 0:10:13]} 1/2-1/2

[Event "2026 European Womens Championship"]
[Site "Batumi, GE"]
[Date "2026.05.28"]
[Round "4"]
[White "Ushenina, Anna"]
[Black "Purtseladze, Maka"]
[Result "1-0"]
[Board "13"]
[TimeControl "5400+30"]
[WhiteFideId "14110911"]
[BlackFideId "13602659"]
[WhiteElo "2420"]
[BlackElo "2237"]
[WhiteTitle "GM"]
[BlackTitle "IM"]
[WhiteClock "0:30:39"]
[BlackClock "0:31:55"]
[Variant "Standard"]

1. d4 {[%clk 1:30:46]}  d5 {[%clk 1:30:53]} 2. c4 {[%clk 1:31:03]}  e6 {[%clk 1:31:07]} 3. Nf3 {[%clk 1:31:01]}  Nf6 {[%clk 1:31:28]}
4. g3 {[%clk 1:31:07]}  Ne4 {[%clk 1:16:51]} 5. Bg2 {[%clk 1:31:06]}  Bb4+ {[%clk 1:16:45]} 6. Nbd2 {[%clk 1:25:56]}  Nc6 {[%clk 1:14:33]}
7. O-O {[%clk 1:20:35]}  O-O {[%clk 1:10:33]} 8. Qc2 {[%clk 1:14:28]}  Nxd2 {[%clk 0:56:59]} 9. Bxd2 {[%clk 1:14:50]}  Bxd2 {[%clk 0:57:18]}
10. Qxd2 {[%clk 1:15:16]}  dxc4 {[%clk 0:46:15]} 11. Rfc1 {[%clk 0:36:54]}  e5 {[%clk 0:19:33]} 12. d5 {[%clk 0:37:10]}  e4 {[%clk 0:19:38]}
13. Ng5 {[%clk 0:33:46]}  f5 {[%clk 0:20:01]} 14. Rxc4 {[%clk 0:33:51]}  Ne5 {[%clk 0:19:58]} 15. Rd4 {[%clk 0:29:33]}  h6 {[%clk 0:19:12]}
16. Nh3 {[%clk 0:29:53]}  Qd6 {[%clk 0:19:01]} 17. f3 {[%clk 0:28:21]}  exf3 {[%clk 0:18:47]} 18. exf3 {[%clk 0:28:49]}  Bd7 {[%clk 0:18:59]}
19. Rc1 {[%clk 0:22:09]}  Kh7 {[%clk 0:13:23]} 20. Nf2 {[%clk 0:21:13]}  a5 {[%clk 0:08:10]} 21. f4 {[%clk 0:21:11]}  Nf7 {[%clk 0:07:05]}
22. Qc3 {[%clk 0:16:58]}  b5 {[%clk 0:03:47]} 23. Rd2 {[%clk 0:16:42]}  Rfe8 {[%clk 0:03:10]} 24. Rdc2 {[%clk 0:16:46]}  Ra7 {[%clk 0:03:15]}
25. Nd3 {[%clk 0:15:49]}  Qb6+ {[%clk 0:02:17]} 26. Qc5 {[%clk 0:15:42]}  Re3 {[%clk 0:01:23]} 27. Bf1 {[%clk 0:15:12]}  Nd6 {[%clk 0:00:40]}
28. Qxb6 {[%clk 0:08:45]}  cxb6 {[%clk 0:01:07]} 29. Ne5 {[%clk 0:07:44]}  Re4 {[%clk 0:01:03]} 30. Bg2 {[%clk 0:07:30]}  Rd4 {[%clk 0:01:06]}
31. Kf2 {[%clk 0:07:52]}  Be8 {[%clk 0:00:58]} 32. Ke3 {[%clk 0:04:19]}  Rb4 {[%clk 0:01:18]} 33. Kd3 {[%clk 0:03:33]}  Nc4 {[%clk 0:00:55]}
34. b3 {[%clk 0:03:24]}  Nd6 {[%clk 0:00:43]} 35. Rc7 {[%clk 0:02:55]}  Ra8 {[%clk 0:00:43]} 36. Re7 {[%clk 0:01:41]}  a4 {[%clk 0:01:09]}
37. Kc3 {[%clk 0:01:54]}  Rc8+ {[%clk 0:00:40]} 38. Nc6 {[%clk 0:02:14]}  Re4 {[%clk 0:00:34]} 39. Bxe4 {[%clk 0:02:35]}  Nxe4+ {[%clk 0:00:36]}
40. Kd4 {[%clk 0:01:48]}  axb3 {[%clk 0:00:53]} 41. axb3 {[%clk 0:02:11]}  Nc5 {[%clk 0:00:57]} 42. Rxc5 {[%clk 0:30:16]}  bxc5+ {[%clk 0:31:23]}
43. Kxc5 {[%clk 0:30:44]}  Bh5 {[%clk 0:31:32]} 44. d6 {[%clk 0:30:11]}  Bf3 {[%clk 0:31:55]} 45. Rc7 {[%clk 0:30:39]} 1-0

[Event "2026 European Womens Championship"]
[Site "Batumi, GE"]
[Date "2026.05.28"]
[Round "4"]
[White "Arabidze, Meri"]
[Black "Skarbarchuk, Tetyana"]
[Result "1-0"]
[Board "14"]
[TimeControl "5400+30"]
[WhiteFideId "13604040"]
[BlackFideId "14184494"]
[WhiteElo "2409"]
[BlackElo "2236"]
[WhiteTitle "IM"]
[WhiteClock "0:13:29"]
[BlackClock "0:02:55"]
[Variant "Standard"]

1. g3 {[%clk 1:30:54]}  d5 {[%clk 1:30:05]} 2. Nf3 {[%clk 1:31:11]}  Nf6 {[%clk 1:30:03]} 3. Bg2 {[%clk 1:31:27]}  c5 {[%clk 1:29:19]}
4. O-O {[%clk 1:30:35]}  h6 {[%clk 1:28:24]} 5. d3 {[%clk 1:27:29]}  Nc6 {[%clk 1:18:37]} 6. Nbd2 {[%clk 1:24:57]}  e5 {[%clk 1:11:48]}
7. e4 {[%clk 1:23:10]}  d4 {[%clk 1:11:48]} 8. Nc4 {[%clk 1:22:58]}  Qc7 {[%clk 1:11:17]} 9. a4 {[%clk 1:22:34]}  Be6 {[%clk 1:03:21]}
10. b3 {[%clk 1:22:03]}  Be7 {[%clk 0:56:26]} 11. Nh4 {[%clk 1:18:48]}  g6 {[%clk 0:45:59]} 12. f4 {[%clk 1:14:40]}  O-O-O {[%clk 0:44:57]}
13. fxe5 {[%clk 0:58:26]}  Nd7 {[%clk 0:44:22]} 14. Nd6+ {[%clk 0:55:53]}  Bxd6 {[%clk 0:43:58]} 15. exd6 {[%clk 0:56:15]}  Qxd6 {[%clk 0:44:23]}
16. Nf3 {[%clk 0:55:16]}  Nde5 {[%clk 0:39:17]} 17. Nxe5 {[%clk 0:49:20]}  Nxe5 {[%clk 0:39:38]} 18. Bf4 {[%clk 0:49:11]}  Rdg8 {[%clk 0:31:45]}
19. Rf2 {[%clk 0:44:00]}  g5 {[%clk 0:27:28]} 20. Bxe5 {[%clk 0:42:51]}  Qxe5 {[%clk 0:27:52]} 21. Qh5 {[%clk 0:42:47]}  f5 {[%clk 0:11:25]}
22. exf5 {[%clk 0:34:06]}  g4 {[%clk 0:11:43]} 23. Raf1 {[%clk 0:31:48]}  Kb8 {[%clk 0:09:06]} 24. Qh4 {[%clk 0:22:20]}  Bf7 {[%clk 0:09:30]}
25. Rf4 {[%clk 0:22:02]}  Qe3+ {[%clk 0:07:57]} 26. Kh1 {[%clk 0:21:22]}  Qe2 {[%clk 0:07:59]} 27. Qf6 {[%clk 0:16:17]}  Rh7 {[%clk 0:04:30]}
28. Re4 {[%clk 0:13:36]}  Qxc2 {[%clk 0:03:21]} 29. Re7 {[%clk 0:13:35]}  Qxb3 {[%clk 0:03:07]} 30. Qd6+ {[%clk 0:13:15]}  Ka8 {[%clk 0:02:55]}
31. Rxb7 {[%clk 0:13:29]} 1-0

[Event "2026 European Womens Championship"]
[Site "Batumi, GE"]
[Date "2026.05.28"]
[Round "4"]
[White "Danielian, Elina"]
[Black "Kubicka, Anna"]
[Result "1-0"]
[Board "15"]
[TimeControl "5400+30"]
[WhiteFideId "13300210"]
[BlackFideId "1152254"]
[WhiteElo "2390"]
[BlackElo "2226"]
[WhiteTitle "GM"]
[BlackTitle "WIM"]
[WhiteClock "0:03:22"]
[BlackClock "0:00:37"]
[Variant "Standard"]

1. d4 {[%clk 1:30:58]}  Nf6 {[%clk 1:30:48]} 2. c4 {[%clk 1:31:23]}  g6 {[%clk 1:31:01]} 3. Nc3 {[%clk 1:31:49]}  Bg7 {[%clk 1:31:24]}
4. Nf3 {[%clk 1:30:25]}  O-O {[%clk 1:31:36]} 5. Bg5 {[%clk 1:30:47]}  d6 {[%clk 1:31:36]} 6. e3 {[%clk 1:31:12]}  h6 {[%clk 1:30:29]}
7. Bh4 {[%clk 1:31:37]}  c5 {[%clk 1:30:11]} 8. d5 {[%clk 1:32:03]}  a6 {[%clk 1:17:43]} 9. a4 {[%clk 1:32:16]}  e6 {[%clk 1:07:28]}
10. Nd2 {[%clk 1:30:54]}  exd5 {[%clk 1:02:39]} 11. cxd5 {[%clk 1:31:20]}  Nbd7 {[%clk 1:01:02]} 12. Be2 {[%clk 1:31:08]}  Qe7 {[%clk 0:55:14]}
13. O-O {[%clk 1:30:22]}  Ne5 {[%clk 0:53:29]} 14. Qc2 {[%clk 1:25:43]}  g5 {[%clk 0:33:53]} 15. Bg3 {[%clk 1:26:08]}  Ne8 {[%clk 0:34:03]}
16. Kh1 {[%clk 1:07:51]}  f5 {[%clk 0:25:21]} 17. f4 {[%clk 1:08:15]}  Ng4 {[%clk 0:23:26]} 18. Bxg4 {[%clk 1:08:01]}  gxf4 {[%clk 0:21:31]}
19. Rxf4 {[%clk 1:04:38]}  fxg4 {[%clk 0:21:35]} 20. Rxf8+ {[%clk 1:05:03]}  Bxf8 {[%clk 0:17:07]} 21. Qg6+ {[%clk 0:55:48]}  Ng7 {[%clk 0:13:30]}
22. Rf1 {[%clk 0:53:04]}  Qe8 {[%clk 0:10:53]} 23. Qxh6 {[%clk 0:52:17]}  Bf5 {[%clk 0:05:26]} 24. e4 {[%clk 0:48:54]}  Qg6 {[%clk 0:05:53]}
25. Qe3 {[%clk 0:31:11]}  Bd7 {[%clk 0:05:37]} 26. Nc4 {[%clk 0:26:28]}  b5 {[%clk 0:02:45]} 27. Nb6 {[%clk 0:26:43]}  Ra7 {[%clk 0:03:02]}
28. Qf2 {[%clk 0:17:46]}  Be7 {[%clk 0:02:05]} 29. Bh4 {[%clk 0:18:08]}  g3 {[%clk 0:01:03]} 30. hxg3 {[%clk 0:15:05]}  Qe8 {[%clk 0:00:45]}
31. e5 {[%clk 0:10:07]}  dxe5 {[%clk 0:00:40]} 32. d6 {[%clk 0:06:52]}  Bxh4 {[%clk 0:00:38]} 33. gxh4 {[%clk 0:07:18]}  Bc6 {[%clk 0:00:41]}
34. d7 {[%clk 0:05:09]}  Bxd7 {[%clk 0:00:46]} 35. Ne4 {[%clk 0:05:32]}  Nh5 {[%clk 0:00:39]} 36. Nd5 {[%clk 0:05:25]}  Kg7 {[%clk 0:00:36]}
37. Ndf6 {[%clk 0:03:48]}  Nxf6 {[%clk 0:00:53]} 38. Qxf6+ {[%clk 0:04:14]}  Kh7 {[%clk 0:01:18]} 39. Qb6 {[%clk 0:03:04]}  Qa8 {[%clk 0:00:37]}
40. Rf7+ {[%clk 0:03:22]} 1-0

[Event "2026 European Womens Championship"]
[Site "Batumi, GE"]
[Date "2026.05.28"]
[Round "4"]
[White "Velikic, Adela"]
[Black "Maltsevskaya, Aleksandra"]
[Result "1/2-1/2"]
[Board "16"]
[TimeControl "5400+30"]
[WhiteFideId "913553"]
[BlackFideId "24174041"]
[WhiteElo "2277"]
[BlackElo "2390"]
[WhiteTitle "WIM"]
[BlackTitle "IM"]
[WhiteClock "0:00:39"]
[BlackClock "0:03:10"]
[Variant "Standard"]

1. d4 {[%clk 1:30:53]}  Nf6 {[%clk 1:30:32]} 2. c4 {[%clk 1:31:19]}  e6 {[%clk 1:30:52]} 3. Nf3 {[%clk 1:31:41]}  d5 {[%clk 1:31:13]}
4. Nc3 {[%clk 1:32:03]}  Bb4 {[%clk 1:31:29]} 5. Bg5 {[%clk 1:31:46]}  h6 {[%clk 1:31:43]} 6. Bxf6 {[%clk 1:32:05]}  Qxf6 {[%clk 1:32:06]}
7. Qb3 {[%clk 1:32:28]}  Nc6 {[%clk 1:21:56]} 8. e3 {[%clk 1:26:11]}  dxc4 {[%clk 1:09:01]} 9. Bxc4 {[%clk 1:25:46]}  O-O {[%clk 1:09:22]}
10. O-O {[%clk 1:24:16]}  Bd6 {[%clk 1:09:31]} 11. Bb5 {[%clk 1:09:41]}  e5 {[%clk 1:03:10]} 12. Bxc6 {[%clk 0:44:17]}  bxc6 {[%clk 1:03:33]}
13. dxe5 {[%clk 0:40:58]}  Bxe5 {[%clk 1:03:55]} 14. Nxe5 {[%clk 0:40:16]}  Qxe5 {[%clk 1:04:18]} 15. Rfd1 {[%clk 0:38:36]}  Be6 {[%clk 1:02:32]}
16. Qa4 {[%clk 0:35:30]}  Rab8 {[%clk 0:54:25]} 17. Rd2 {[%clk 0:35:18]}  c5 {[%clk 0:54:48]} 18. Qe4 {[%clk 0:31:26]}  Qg5 {[%clk 0:44:44]}
19. Qc6 {[%clk 0:30:37]}  Rbd8 {[%clk 0:44:10]} 20. Rad1 {[%clk 0:26:22]}  Rxd2 {[%clk 0:43:33]} 21. Rxd2 {[%clk 0:26:51]}  Rd8 {[%clk 0:43:51]}
22. Rxd8+ {[%clk 0:13:10]}  Qxd8 {[%clk 0:44:13]} 23. h3 {[%clk 0:11:54]}  c4 {[%clk 0:28:04]} 24. Qf3 {[%clk 0:08:16]}  Qd2 {[%clk 0:24:33]}
25. Qe2 {[%clk 0:07:50]}  Qc1+ {[%clk 0:24:56]} 26. Kh2 {[%clk 0:07:57]}  c6 {[%clk 0:24:50]} 27. f3 {[%clk 0:06:31]}  a5 {[%clk 0:16:22]}
28. a3 {[%clk 0:06:50]}  Bf5 {[%clk 0:12:18]} 29. e4 {[%clk 0:04:49]}  Be6 {[%clk 0:12:18]} 30. Qf2 {[%clk 0:02:01]}  Qf4+ {[%clk 0:08:25]}
31. Kh1 {[%clk 0:01:11]}  f5 {[%clk 0:05:45]} 32. Qb6 {[%clk 0:00:56]}  Qc1+ {[%clk 0:02:27]} 33. Kh2 {[%clk 0:01:15]}  Qf4+ {[%clk 0:02:49]}
34. Kg1 {[%clk 0:01:18]}  Qc1+ {[%clk 0:02:34]} 35. Kh2 {[%clk 0:00:54]}  Qf4+ {[%clk 0:02:53]} 36. Kg1 {[%clk 0:01:13]}  Qc1+ {[%clk 0:03:10]}
37. Kh2 {[%clk 0:00:39]} 1/2-1/2

[Event "2026 European Womens Championship"]
[Site "Batumi, GE"]
[Date "2026.05.28"]
[Round "4"]
[White "Szczotka, Klara"]
[Black "Efroimski, Marsel"]
[Result "1/2-1/2"]
[Board "17"]
[TimeControl "5400+30"]
[WhiteFideId "21858845"]
[BlackFideId "2810964"]
[WhiteElo "2241"]
[BlackElo "2386"]
[WhiteTitle "WFM"]
[BlackTitle "IM"]
[WhiteClock "0:51:29"]
[BlackClock "0:22:08"]
[Variant "Standard"]

1. d4 {[%clk 1:30:57]}  d5 {[%clk 1:26:28]} 2. c4 {[%clk 1:31:17]}  e6 {[%clk 1:26:54]} 3. Nc3 {[%clk 1:31:34]}  Nf6 {[%clk 1:27:20]}
4. cxd5 {[%clk 1:31:54]}  exd5 {[%clk 1:27:49]} 5. Bg5 {[%clk 1:32:12]}  Be7 {[%clk 1:28:13]} 6. e3 {[%clk 1:32:33]}  h6 {[%clk 1:28:38]}
7. Bh4 {[%clk 1:32:54]}  O-O {[%clk 1:29:00]} 8. Bd3 {[%clk 1:33:13]}  Re8 {[%clk 1:29:27]} 9. Qc2 {[%clk 1:32:37]}  c5 {[%clk 1:29:35]}
10. Nge2 {[%clk 1:28:18]}  Nc6 {[%clk 1:15:19]} 11. a3 {[%clk 1:24:56]}  cxd4 {[%clk 0:48:36]} 12. exd4 {[%clk 1:25:04]}  Ng4 {[%clk 0:44:42]}
13. Bg3 {[%clk 1:16:34]}  Bh4 {[%clk 0:39:07]} 14. O-O {[%clk 1:11:29]}  Bxg3 {[%clk 0:38:31]} 15. hxg3 {[%clk 1:11:41]}  Qg5 {[%clk 0:38:53]}
16. Nf4 {[%clk 1:08:09]}  Nxd4 {[%clk 0:30:18]} 17. Qa4 {[%clk 1:05:30]}  Nc6 {[%clk 0:30:37]} 18. Ncxd5 {[%clk 1:04:04]}  Bf5 {[%clk 0:22:11]}
19. Nh3 {[%clk 0:51:21]}  Qg6 {[%clk 0:20:41]} 20. Nhf4 {[%clk 0:51:31]}  Qg5 {[%clk 0:20:58]} 21. Nh3 {[%clk 0:51:56]}  Qg6 {[%clk 0:21:24]}
22. Nhf4 {[%clk 0:52:22]}  Qg5 {[%clk 0:21:47]} 23. Nh3 {[%clk 0:52:45]}  Qg6 {[%clk 0:22:08]} 24. Nhf4 {[%clk 0:51:29]} 1/2-1/2

[Event "2026 European Womens Championship"]
[Site "Batumi, GE"]
[Date "2026.05.28"]
[Round "4"]
[White "Kulon, Klaudia"]
[Black "Mamedjarova, Turkan"]
[Result "1/2-1/2"]
[Board "18"]
[TimeControl "5400+30"]
[WhiteFideId "1131044"]
[BlackFideId "13402005"]
[WhiteElo "2377"]
[BlackElo "2222"]
[WhiteTitle "IM"]
[BlackTitle "WGM"]
[WhiteClock "0:28:53"]
[BlackClock "0:02:45"]
[Variant "Standard"]

1. e4 {[%clk 1:28:58]}  e5 {[%clk 1:29:33]} 2. Nf3 {[%clk 1:29:21]}  Nc6 {[%clk 1:29:57]} 3. Bc4 {[%clk 1:29:43]}  Bc5 {[%clk 1:30:08]}
4. c3 {[%clk 1:30:05]}  Nf6 {[%clk 1:30:20]} 5. d4 {[%clk 1:30:26]}  exd4 {[%clk 1:30:36]} 6. b4 {[%clk 1:30:47]}  Bb6 {[%clk 1:16:15]}
7. e5 {[%clk 1:30:36]}  d5 {[%clk 1:15:51]} 8. exf6 {[%clk 1:30:58]}  dxc4 {[%clk 1:16:15]} 9. Qe2+ {[%clk 1:31:18]}  Be6 {[%clk 1:15:53]}
10. b5 {[%clk 1:31:23]}  Na5 {[%clk 0:52:58]} 11. fxg7 {[%clk 1:31:09]}  Rg8 {[%clk 0:51:36]} 12. cxd4 {[%clk 1:31:24]}  Qd7 {[%clk 0:38:39]}
13. Nc3 {[%clk 1:30:57]}  O-O-O {[%clk 0:38:37]} 14. Bg5 {[%clk 1:31:01]}  Rde8 {[%clk 0:37:17]} 15. O-O-O {[%clk 1:31:00]}  Bg4 {[%clk 0:29:58]}
16. Qd2 {[%clk 1:31:02]}  Bxf3 {[%clk 0:29:15]} 17. gxf3 {[%clk 1:31:28]}  Rxg7 {[%clk 0:29:40]} 18. Rhe1 {[%clk 1:31:13]}  Rgg8 {[%clk 0:26:47]}
19. Rxe8+ {[%clk 1:17:38]}  Rxe8 {[%clk 0:26:41]} 20. Qf4 {[%clk 1:16:37]}  a6 {[%clk 0:24:36]} 21. bxa6 {[%clk 1:13:28]}  bxa6 {[%clk 0:19:42]}
22. Bf6 {[%clk 1:10:06]}  Kb8 {[%clk 0:15:41]} 23. h4 {[%clk 0:59:17]}  Nb7 {[%clk 0:13:03]} 24. d5 {[%clk 0:46:15]}  Nd6 {[%clk 0:12:19]}
25. Be5 {[%clk 0:44:58]}  Ba5 {[%clk 0:07:46]} 26. Kc2 {[%clk 0:43:48]}  Bxc3 {[%clk 0:06:25]} 27. Kxc3 {[%clk 0:39:46]}  Qa4 {[%clk 0:06:31]}
28. Bxd6 {[%clk 0:35:50]}  Qxd1 {[%clk 0:06:55]} 29. Bxc7+ {[%clk 0:36:17]}  Ka8 {[%clk 0:05:32]} 30. Qxf7 {[%clk 0:31:53]}  Qc1+ {[%clk 0:01:40]}
31. Kd4 {[%clk 0:31:04]}  Qb2+ {[%clk 0:01:44]} 32. Kc5 {[%clk 0:28:28]}  Qb5+ {[%clk 0:01:59]} 33. Kd4 {[%clk 0:28:53]}  Qb2+ {[%clk 0:02:19]}
34. Kc5 {[%clk 0:28:26]}  Qb5+ {[%clk 0:02:45]} 35. Kd4 {[%clk 0:28:53]}  Re1 {[%clk 0:00:32]} 36. Qf8+ {[%clk 0:28:50]}  Ka7 {[%clk 0:01:17]} 1/2-1/2